fUST/lending_fUST_20241008
["ID","MTS","AMOUNT","RATE_DAILY","PERIOD"]
[340044754,1728393043860,-552.78652793,0.00039698,120]
[340044755,1728393043872,-458.273718,0.0004,2]
[340044756,1728393043883,-1000.0,0.0004,30]
[340044757,1728393043894,-501.29012445,0.00040242,5]
[340044758,1728393043905,-3767.22507674,0.00040458,28]
[340044759,1728393043915,-500.0,0.0004176,10]
[340044760,1728393043926,-239.0,0.0004218,46]
[340044761,1728393043938,-1449.93589379,0.00042493,2]
[340044762,1728393043950,-400.0,0.00044658,2]
[340044763,1728393043962,-179.910565,0.00044817,30]
[340044764,1728393043973,-197.550584,0.00044817,30]
[340044765,1728393043982,-289.334726,0.00044817,30]
[340044766,1728393043992,-185.247777,0.00044817,30]
[340044767,1728393044004,-159.615532,0.00044817,30]
[340044768,1728393044015,-186.664497,0.00044817,30]
[340044769,1728393044025,-174.054146,0.00044817,30]
[340044770,1728393044034,-2000.0,0.00045,45]
[340044771,1728393044047,-458.273718,0.00045105,120]
[340044772,1728393044057,-197.550584,0.00045377,30]
[340044773,1728393044067,-289.334726,0.00045377,30]
[340044774,1728393044077,-3767.22507674,0.00045531,28]
[340044775,1728393044089,-197.550584,0.00045937,30]
[340044776,1728393044100,-289.334726,0.00045937,30]
[340044777,1728393044109,-186.664497,0.00045937,30]
[340044778,1728393044122,-1316.09147105,0.0004599,6]
[340044779,1728393044132,-2000.0,0.00046,46]
[340044780,1728393044145,-1449.93589379,0.00046207,2]
[340044781,1728393044156,-576.2933144,0.0004636,11]
[340044782,1728393044166,-197.550584,0.00046498,30]
[340044783,1728393044179,-289.334726,0.00046498,30]
[340044784,1728393044189,-152.0,0.00046679,60]
[340044785,1728393044199,-576.2933144,0.0004686,12]
[340044786,1728393044210,-1000.0,0.00046861,7]
[340044787,1728393044221,-407.03487305,0.00046921,30]
[340044788,1728393044235,-2000.0,0.00047,47]
[340044789,1728393044249,-10000.0,0.00047,120]
[340044790,1728393044259,-197.550584,0.00047058,30]
[340044791,1728393044269,-289.334726,0.00047058,30]
[340044792,1728393044280,-186.664497,0.00047058,30]
[340044793,1728393044291,-152.0,0.00047106,60]
[340044794,1728393044302,-576.2933144,0.0004736,13]
[340044795,1728393044313,-1000.0,0.00047394,7]
[340044796,1728393044323,-152.0,0.00047532,60]
[340044797,1728393044334,-1000.0,0.00047747,7]
[340044798,1728393044343,-576.2933144,0.0004786,13]
[340044799,1728393044353,-152.0,0.00047959,60]
[340044800,1728393044362,-1316.09147105,0.0004799,7]
[340044801,1728393044372,-2000.0,0.00048,48]
[340044802,1728393044382,-1006.0,0.00048,61]
[340044803,1728393044393,-10000.0,0.00048,120]
[340044804,1728393044403,-8222.80939994,0.00048,30]
[340044805,1728393044414,-151.0,0.00048,120]
[340044806,1728393044424,-151.0,0.00048,120]
[340044807,1728393044434,-167.63962,0.00048,120]
[340044808,1728393044443,-167.63962,0.00048,120]
[340044809,1728393044452,-151.0,0.00048,120]
[340044810,1728393044461,-151.0,0.00048,120]
[340044811,1728393044470,-151.0,0.00048,120]
[340044812,1728393044480,-151.0,0.00048,120]
[340044813,1728393044489,-151.0,0.00048,120]
[340044814,1728393044500,-151.0,0.00048,120]
[340044815,1728393044509,-151.0,0.00048,120]
[340044816,1728393044521,-151.0,0.00048,120]
[340044817,1728393044533,-151.0,0.00048,120]
[340044818,1728393044543,-151.0,0.00048,120]
[340044819,1728393044553,-151.0,0.00048,120]
[340044820,1728393044563,-151.0,0.00048,120]
[340044821,1728393044573,-151.0,0.00048,120]
[340044822,1728393044583,-151.0,0.00048,120]
[340044823,1728393044594,-151.0,0.00048,120]
[340044824,1728393044603,-151.0,0.00048,120]
[340044825,1728393044614,-151.0,0.00048,120]
[340044826,1728393044625,-151.0,0.00048,120]
[340044827,1728393044635,-237.65648,0.00048,120]
[340044828,1728393044646,-151.0,0.00048,120]
[340044829,1728393044658,-151.0,0.00048,120]
[340044830,1728393044668,-237.65648,0.00048,120]
[340044831,1728393044677,-151.0,0.00048,120]
[340044832,1728393044687,-151.0,0.00048,120]
[340044833,1728393044696,-151.0,0.00048,120]
[340044834,1728393044706,-151.0,0.00048,120]
[340044835,1728393044716,-363.60717,0.00048,120]
[340044836,1728393044737,-151.0,0.00048,120]
[340044837,1728393044754,-363.60717,0.00048,120]
[340044838,1728393044764,-296.974532,0.00048,120]
[340044839,1728393044774,-2946.772148,0.00048,60]
[340044840,1728393044784,-2946.772148,0.00048,60]
[340044841,1728393044793,-151.0,0.00048,120]
[340044842,1728393044803,-151.0,0.00048,120]
[340044843,1728393044813,-151.0,0.00048,120]
[340044844,1728393044823,-151.0,0.00048,120]
[340044845,1728393044833,-151.0,0.00048,120]
[340044846,1728393044842,-151.0,0.00048,120]
[340044847,1728393044853,-151.0,0.00048,120]
[340044848,1728393044863,-151.0,0.00048,120]
[340044849,1728393044873,-151.0,0.00048,100]
[340044850,1728393044882,-535.070487,0.00048,120]
[340044851,1728393044892,-151.0,0.00048,120]
[340044852,1728393044902,-151.0,0.00048,120]
[340044853,1728393044913,-535.070487,0.00048,120]
[340044854,1728393044922,-2000.0,0.0004825,120]
[340044855,1728393044932,-2000.0,0.0004825,120]
[340044856,1728393044942,-2000.0,0.0004825,120]
[340044857,1728393044951,-2000.0,0.0004825,120]
[340044858,1728393044961,-2000.0,0.0004825,120]
[340044859,1728393044970,-576.2933144,0.0004836,14]
[340044860,1728393044979,-152.0,0.00048385,60]
[340044861,1728393044989,-1397.0,0.00048497,70]
[340044862,1728393045000,-2000.0,0.000485,120]
[340044863,1728393045009,-2000.0,0.000485,120]
[340044864,1728393045019,-152.0,0.00048812,60]
[340044865,1728393045028,-1000.0,0.0004889,120]
[340044866,1728393045037,-160.0,0.00048903,3]
[340044867,1728393045051,-150.0,0.00048904,90]
[340044868,1728393045061,-746.94,0.00048999,120]
[340044869,1728393045070,-2000.0,0.00049,49]
[340044870,1728393045080,-100000.0,0.00049,120]
[340044871,1728393045091,-1000.0,0.00049,120]
[340044872,1728393045100,-357.7021823,0.00049041,30]
[340044873,1728393045109,-152.0,0.00049238,60]
[340044874,1728393045120,-1323.47,0.00049315,120]
[340044875,1728393045130,-597.43,0.00049315,30]
[340044876,1728393045139,-500.0,0.00049391,30]
[340044877,1728393045148,-400.0,0.00049517,2]
[340044878,1728393045158,-335055.69985,0.00049799,30]
[340044879,1728393045167,-50315.0,0.000498,30]
[340044880,1728393045177,-167.63962,0.000498,120]
[340044881,1728393045187,-167.63962,0.000498,120]
[340044882,1728393045198,-151.0,0.000498,120]
[340044883,1728393045208,-151.0,0.000498,120]
[340044884,1728393045218,-151.0,0.000498,120]
[340044885,1728393045324,-151.0,0.000498,120]
[340044886,1728393045334,-151.0,0.000498,120]
[340044887,1728393045344,-151.0,0.000498,120]
[340044888,1728393045355,-151.0,0.000498,120]
[340044889,1728393045365,-151.0,0.000498,120]
[340044890,1728393045374,-151.0,0.000498,120]
[340044891,1728393045384,-151.0,0.000498,120]
[340044892,1728393045393,-151.0,0.000498,120]
[340044893,1728393045405,-151.0,0.000498,120]
[340044894,1728393045416,-151.0,0.000498,120]
[340044895,1728393045427,-3000.0,0.000498,120]
[340044896,1728393045438,-3000.0,0.000498,120]
[340044897,1728393045449,-3000.0,0.000498,120]
[340044898,1728393045458,-889.449466,0.000498,120]
[340044899,1728393045469,-237.65648,0.000498,120]
[340044900,1728393045481,-151.0,0.000498,120]
[340044901,1728393045493,-237.65648,0.000498,120]
[340044902,1728393045504,-151.0,0.000498,120]
[340044903,1728393045515,-151.0,0.000498,120]
[340044904,1728393045525,-363.60717,0.000498,120]
[340044905,1728393045535,-151.0,0.000498,120]
[340044906,1728393045547,-363.60717,0.000498,120]
[340044907,1728393045556,-2946.772148,0.000498,60]
[340044908,1728393045569,-2946.772148,0.000498,60]
[340044909,1728393045579,-151.0,0.000498,120]
[340044910,1728393045589,-151.0,0.000498,120]
[340044911,1728393045599,-151.0,0.000498,120]
[340044912,1728393045610,-151.0,0.000498,120]
[340044913,1728393045620,-151.0,0.000498,120]
[340044915,1728393045630,-151.0,0.000498,120]
[340044916,1728393045639,-151.0,0.000498,120]
[340044917,1728393045649,-151.0,0.000498,120]
[340044918,1728393045659,-151.0,0.000498,100]
[340044919,1728393045669,-535.070487,0.000498,120]
[340044920,1728393045678,-151.0,0.000498,120]
[340044921,1728393045690,-535.070487,0.000498,120]
[340044922,1728393045699,-1323.47,0.00049863,120]
[340044923,1728393045710,-1449.93589379,0.0004992,2]
[340044924,1728393045720,-2000.0,0.0005,50]
[340044925,1728393045730,-9999.9009,0.0005,120]
[340044926,1728393045739,-458.45981818,0.0005,120]
[340044927,1728393045749,-5325.50152662,0.0005,120]
[340044928,1728393045759,-1000.0,0.0005,120]
[340044929,1728393045768,-1025.80743335,0.0005,120]
[340044930,1728393045778,-1000.0,0.0005,30]
[340044931,1728393045787,-458.273718,0.00050209,120]
[340044933,1728393045796,-1323.47,0.0005041,120]
[340044935,1728393045806,-3767.22507674,0.00050605,28]
[340044936,1728393045815,-597.43,0.00050684,35]
[340044937,1728393045824,-1323.47,0.00050958,120]
[340044938,1728393045833,-153.0,0.00050959,30]
[340044939,1728393045842,-357.43409782,0.0005096,120]
[340044940,1728393045853,-2000.0,0.00051,51]
[340044941,1728393045863,-153.87766812,0.0005105,81]
[340044942,1728393045872,-152.0,0.00051349,120]
[340044943,1728393045882,-1323.47,0.00051506,120]
[340044944,1728393045891,-2000.0,0.0005198,120]
[340044945,1728393045900,-500.0,0.0005199,30]
[340044946,1728393045910,-2000.0,0.00052,52]
[340044947,1728393045919,-100000.0,0.00052,120]
[340044948,1728393045929,-580.0,0.00052,30]
[340044949,1728393045944,-500.0,0.00052,120]
[340044950,1728393045953,-101685.70665699,0.00052,120]
[340044951,1728393045962,-167.63962,0.00052,120]
[340044952,1728393045972,-167.63962,0.00052,120]
[340044953,1728393045981,-151.0,0.00052,120]
[340044954,1728393045992,-151.0,0.00052,120]
[340044955,1728393046002,-151.0,0.00052,120]
[340044957,1728393046011,-151.0,0.00052,120]
[340044958,1728393046020,-218.743002,0.00052,120]
[340044959,1728393046030,-170.009578,0.00052,120]
[340044960,1728393046040,-153.748415,0.00052,120]
[340044961,1728393046051,-151.0,0.00052,120]
[340044962,1728393046060,-151.0,0.00052,120]
[340044963,1728393046069,-151.0,0.00052,120]
[340044964,1728393046079,-237.65648,0.00052,120]
[340044965,1728393046093,-237.65648,0.00052,120]
[340044966,1728393046102,-151.0,0.00052,120]
[340044967,1728393046112,-151.0,0.00052,120]
[340044968,1728393046124,-193.102862,0.00052,120]
[340044969,1728393046134,-151.0,0.00052,120]
[340044970,1728393046143,-363.60717,0.00052,120]
[340044971,1728393046153,-161.32201,0.00052,120]
[340044972,1728393046162,-363.60717,0.00052,120]
[340044973,1728393046171,-2946.772148,0.00052,60]
[340044974,1728393046181,-2946.772148,0.00052,60]
[340044975,1728393046191,-151.0,0.00052,120]
[340044976,1728393046200,-151.0,0.00052,120]
[340044977,1728393046210,-151.0,0.00052,120]
[340044978,1728393046219,-151.0,0.00052,120]
[340044979,1728393046229,-151.0,0.00052,120]
[340044980,1728393046238,-151.0,0.00052,120]
[340044981,1728393046249,-151.0,0.00052,120]
[340044982,1728393046258,-151.0,0.00052,100]
[340044983,1728393046267,-535.070487,0.00052,120]
[340044984,1728393046277,-151.0,0.00052,120]
[340044985,1728393046287,-535.070487,0.00052,120]
[340044986,1728393046296,-1323.47,0.00052054,120]
[340044987,1728393046306,-597.43,0.00052054,40]
[340044988,1728393046316,-2000.0,0.000522,120]
[340044989,1728393046325,-2000.0,0.000522,120]
[340044990,1728393046335,-2000.0,0.000522,120]
[340044991,1728393046345,-2000.0,0.000522,120]
[340044992,1728393046354,-2000.0,0.000522,120]
[340044993,1728393046364,-2000.0,0.000522,120]
[340044994,1728393046375,-2000.0,0.000522,120]
[340044995,1728393046386,-2000.0,0.000522,120]
[340044996,1728393046395,-2000.0,0.000522,120]
[340044997,1728393046407,-2000.0,0.000522,120]
[340044998,1728393046418,-2000.0,0.000522,120]
[340044999,1728393046427,-2000.0,0.000522,120]
[340045000,1728393046437,-2000.0,0.000522,120]
[340045001,1728393046447,-2000.0,0.000522,120]
[340045002,1728393046456,-2000.0,0.000522,120]
[340045003,1728393046466,-2000.0,0.000522,120]
[340045004,1728393046475,-2000.0,0.000522,120]
[340045005,1728393046485,-1323.47,0.00052602,120]
[340045006,1728393046495,-2000.0,0.000527,120]
[340045007,1728393046505,-2000.0,0.000528,120]
[340045008,1728393046514,-2000.0,0.00053,53]
[340045009,1728393046524,-2000.0,0.00053,120]
[340045010,1728393046534,-2000.0,0.00053,120]
[340045011,1728393046543,-50750.6463552,0.00053,120]
[340045012,1728393046553,-167.63962,0.00053,120]
[340045013,1728393046562,-167.63962,0.00053,120]
[340045014,1728393046572,-151.0,0.00053,120]
[340045015,1728393046581,-151.0,0.00053,120]
[340045016,1728393046591,-151.0,0.00053,120]
[340045017,1728393046601,-153.025946,0.00053,120]
[340045018,1728393046611,-151.0,0.00053,120]
[340045019,1728393046620,-151.0,0.00053,120]
[340045020,1728393046629,-237.65648,0.00053,120]
[340045021,1728393046639,-237.65648,0.00053,120]
[340045022,1728393046649,-151.0,0.00053,120]
[340045023,1728393046659,-151.0,0.00053,120]
[340045024,1728393046670,-151.0,0.00053,120]
[340045025,1728393046679,-363.60717,0.00053,120]
[340045026,1728393046689,-363.60717,0.00053,120]
[340045027,1728393046700,-2946.772148,0.00053,60]
[340045028,1728393046710,-2946.772148,0.00053,60]
[340045029,1728393046720,-151.0,0.00053,120]
[340045030,1728393046729,-151.0,0.00053,120]
[340045031,1728393046738,-151.0,0.00053,120]
[340045032,1728393046750,-151.0,0.00053,120]
[340045033,1728393046760,-271.079208,0.00053,120]
[340045034,1728393046769,-151.0,0.00053,120]
[340045035,1728393046778,-151.0,0.00053,120]
[340045036,1728393046789,-151.0,0.00053,100]
[340045037,1728393046799,-535.070487,0.00053,120]
[340045038,1728393046808,-151.0,0.00053,120]
[340045039,1728393046819,-535.070487,0.00053,120]
[340045040,1728393046827,-401.554002,0.00053151,30]
[340045041,1728393046837,-2000.0,0.000532,120]
[340045042,1728393046846,-2000.0,0.000532,120]
[340045043,1728393046856,-2000.0,0.000532,120]
[340045044,1728393046866,-2000.0,0.000532,120]
[340045045,1728393046946,-2000.0,0.000532,120]
[340045046,1728393046956,-2000.0,0.000532,120]
[340045047,1728393046965,-2000.0,0.000532,120]
[340045048,1728393046974,-597.43,0.00053424,45]
[340045049,1728393046983,-3999.999999,0.000535,120]
[340045050,1728393046993,-1323.65661623,0.00053698,120]
[340045051,1728393047004,-2000.0,0.000538,120]
[340045052,1728393047016,-2579.57207773,0.0005399,120]
[340045053,1728393047027,-2000.0,0.00054,54]
[340045054,1728393047040,-15022.0,0.00054,120]
[340045055,1728393047052,-4194.2211283,0.00054,120]
[340045056,1728393047061,-1000.0,0.00054,120]
[340045057,1728393047070,-302.83,0.000542,120]
[340045058,1728393047079,-400.0,0.00054376,2]
[340045059,1728393047090,-500.0,0.0005452,120]
[340045060,1728393047100,-500.0,0.0005452,120]
[340045061,1728393047109,-500.0,0.0005452,120]
[340045062,1728393047121,-500.0,0.0005452,120]
[340045063,1728393047131,-500.0,0.0005452,120]
[340045064,1728393047140,-500.0,0.0005452,120]
[340045065,1728393047150,-500.0,0.0005452,120]
[340045066,1728393047159,-500.0,0.0005452,120]
[340045067,1728393047169,-500.0,0.0005452,120]
[340045068,1728393047178,-500.0,0.0005452,120]
[340045069,1728393047190,-500.0,0.0005452,120]
[340045070,1728393047202,-500.0,0.0005452,120]
[340045071,1728393047213,-500.0,0.0005452,120]
[340045072,1728393047224,-500.0,0.0005452,120]
[340045073,1728393047234,-500.0,0.0005452,120]
[340045074,1728393047245,-500.0,0.0005452,120]
[340045075,1728393047254,-500.0,0.0005452,120]
[340045076,1728393047264,-500.0,0.0005452,120]
[340045077,1728393047273,-500.0,0.0005452,120]
[340045078,1728393047283,-406.64685403,0.0005452,120]
[340045079,1728393047292,-167.63962,0.0005452,120]
[340045080,1728393047301,-167.63962,0.0005452,120]
[340045081,1728393047311,-151.886922,0.0005452,120]
[340045082,1728393047320,-151.0,0.0005452,120]
[340045083,1728393047330,-151.0,0.0005452,120]
[340045084,1728393047340,-151.0,0.0005452,120]
[340045085,1728393047349,-237.65648,0.0005452,120]
[340045086,1728393047359,-237.65648,0.0005452,120]
[340045087,1728393047369,-151.0,0.0005452,120]
[340045088,1728393047378,-151.0,0.0005452,120]
[340045089,1728393047388,-156.138218,0.0005452,120]
[340045090,1728393047398,-363.60717,0.0005452,120]
[340045091,1728393047408,-363.60717,0.0005452,120]
[340045092,1728393047419,-2946.772148,0.0005452,60]
[340045093,1728393047429,-2946.772148,0.0005452,60]
[340045094,1728393047438,-274.235978,0.0005452,120]
[340045095,1728393047449,-151.0,0.0005452,120]
[340045096,1728393047459,-151.0,0.0005452,120]
[340045097,1728393047470,-151.0,0.0005452,120]
[340045098,1728393047480,-151.0,0.0005452,120]
[340045099,1728393047490,-151.0,0.0005452,100]
[340045100,1728393047503,-535.070487,0.0005452,120]
[340045101,1728393047512,-151.0,0.0005452,120]
[340045102,1728393047522,-535.070487,0.0005452,120]
[340045103,1728393047536,-500.0,0.0005459,30]
[340045104,1728393047547,-160.0,0.00054709,4]
[340045105,1728393047557,-204.35593698,0.00054709,5]
[340045106,1728393047569,-500.0,0.00054773,10]
[340045107,1728393047578,-500.0,0.00054773,10]
[340045108,1728393047589,-154.8482896,0.00054792,120]
[340045109,1728393047601,-1401.2715625,0.00054793,120]
[340045110,1728393047612,-384.03214412,0.00054793,120]
[340045111,1728393047623,-500.0,0.00054794,120]
[340045112,1728393047634,-242.22431563,0.00054794,120]
[340045113,1728393047643,-485.65131859,0.00054794,120]
[340045114,1728393047653,-500.90514713,0.00054794,120]
[340045115,1728393047663,-507.66607198,0.00054794,120]
[340045116,1728393047673,-500.0,0.00054794,120]
[340045117,1728393047683,-500.83220537,0.00054794,120]
[340045118,1728393047692,-501.70495387,0.00054794,120]
[340045119,1728393047702,-592.91138722,0.00054794,120]
[340045120,1728393047711,-500.0,0.00054794,120]
[340045121,1728393047721,-500.0,0.00054794,120]
[340045122,1728393047730,-500.0,0.00054794,120]
[340045123,1728393047741,-500.0,0.00054794,120]
[340045124,1728393047754,-501.35635603,0.00054794,120]
[340045125,1728393047763,-501.47368385,0.00054794,120]
[340045126,1728393047773,-500.0,0.00054794,120]
[340045127,1728393047784,-500.53692639,0.00054794,90]
[340045128,1728393047795,-538.34256645,0.00054794,120]
[340045129,1728393047804,-500.0,0.00054794,120]
[340045130,1728393047815,-500.58920208,0.00054794,120]
[340045131,1728393047824,-501.73849592,0.00054794,120]
[340045132,1728393047834,-501.47903402,0.00054794,120]
[340045133,1728393047846,-508.24565474,0.00054794,120]
[340045134,1728393047858,-500.0,0.00054794,120]
[340045135,1728393047869,-171.35514518,0.00054794,120]
[340045136,1728393047880,-177.78,0.00054794,120]
[340045137,1728393047891,-500.0,0.00054794,120]
[340045138,1728393047901,-502.17071644,0.00054794,120]
[340045139,1728393047913,-500.49724681,0.00054794,120]
[340045140,1728393047924,-503.78811701,0.00054794,120]
[340045141,1728393047935,-500.0,0.00054794,120]
[340045142,1728393047947,-500.0,0.00054794,120]
[340045143,1728393047959,-501.11728228,0.00054794,120]
[340045144,1728393047968,-500.0,0.00054794,120]
[340045145,1728393047982,-515.50905183,0.00054794,120]
[340045146,1728393047992,-500.0,0.00054794,120]
[340045147,1728393048012,-501.58846178,0.00054794,120]
[340045148,1728393048022,-501.31612533,0.00054794,120]
[340045149,1728393048031,-501.25067355,0.00054794,10]
[340045150,1728393048043,-500.70060432,0.00054794,120]
[340045151,1728393048053,-323.40531957,0.00054794,120]
[340045152,1728393048063,-501.00396442,0.00054794,120]
[340045153,1728393048073,-504.16866331,0.00054794,120]
[340045154,1728393048084,-501.1106536,0.00054794,120]
[340045155,1728393048094,-500.7642411,0.00054794,120]
[340045156,1728393048104,-507.69982362,0.00054794,120]
[340045157,1728393048114,-200.55718333,0.00054794,120]
[340045158,1728393048123,-501.10600468,0.00054794,120]
[340045159,1728393048134,-639.87686208,0.00054794,120]
[340045160,1728393048145,-500.0,0.00054794,120]
[340045161,1728393048155,-543.64493381,0.00054794,120]
[340045162,1728393048165,-500.59148565,0.00054794,120]
[340045163,1728393048176,-501.02559937,0.00054794,120]
[340045164,1728393048187,-500.0,0.00054794,120]
[340045165,1728393048197,-503.13716542,0.00054794,120]
[340045166,1728393048207,-508.51930072,0.00054794,120]
[340045167,1728393048218,-500.0,0.00054794,120]
[340045168,1728393048228,-500.0,0.00054794,120]
[340045169,1728393048238,-500.0,0.00054794,120]
[340045170,1728393048248,-500.0,0.00054794,120]
[340045171,1728393048258,-500.0,0.00054794,120]
[340045172,1728393048269,-500.0,0.00054794,120]
[340045173,1728393048279,-500.0,0.00054794,120]
[340045174,1728393048289,-506.45530585,0.00054794,120]
[340045175,1728393048299,-500.0,0.00054794,120]
[340045176,1728393048309,-593.53224127,0.00054794,120]
[340045177,1728393048319,-500.0,0.00054794,120]
[340045178,1728393048330,-500.0,0.00054794,120]
[340045179,1728393048340,-500.0,0.00054794,120]
[340045180,1728393048350,-502.82191052,0.00054794,120]
[340045181,1728393048361,-500.0,0.00054794,120]
[340045182,1728393048371,-502.26192473,0.00054794,120]
[340045183,1728393048381,-500.2893297,0.00054794,120]
[340045184,1728393048391,-500.0,0.00054794,120]
[340045185,1728393048402,-501.84696479,0.00054794,120]
[340045186,1728393048412,-502.81192675,0.00054794,120]
[340045187,1728393048424,-500.66153966,0.00054794,120]
[340045188,1728393048434,-500.49251996,0.00054794,120]
[340045189,1728393048444,-500.0,0.00054794,120]
[340045190,1728393048539,-500.0,0.00054794,120]
[340045191,1728393048549,-500.21119315,0.00054794,120]
[340045192,1728393048559,-500.0,0.00054794,120]
[340045193,1728393048569,-500.0,0.00054794,120]
[340045194,1728393048578,-500.0,0.00054794,120]
[340045195,1728393048590,-500.0,0.00054794,120]
[340045196,1728393048603,-500.0,0.00054794,120]
[340045197,1728393048613,-500.93169045,0.00054794,120]
[340045198,1728393048623,-500.0,0.00054794,120]
[340045199,1728393048633,-500.0,0.00054794,120]
[340045200,1728393048643,-500.8199099,0.00054794,120]
[340045201,1728393048652,-495.37691835,0.00054794,120]
[340045202,1728393048663,-500.0,0.00054794,120]
[340045203,1728393048673,-500.0,0.00054794,120]
[340045204,1728393048683,-209.93941638,0.00054794,120]
[340045205,1728393048693,-500.0,0.00054794,120]
[340045206,1728393048702,-169.00950429,0.00054794,120]
[340045207,1728393048712,-500.0,0.00054794,120]
[340045208,1728393048723,-500.0,0.00054794,120]
[340045209,1728393048733,-500.0,0.00054794,120]
[340045210,1728393048743,-516.85286212,0.00054794,120]
[340045211,1728393048755,-591.26904091,0.00054794,120]
[340045212,1728393048765,-161.11071229,0.00054794,120]
[340045213,1728393048775,-502.09600553,0.00054794,120]
[340045214,1728393048785,-500.0,0.00054794,120]
[340045215,1728393048795,-501.6767063,0.00054794,120]
[340045216,1728393048804,-500.0,0.00054794,120]
[340045217,1728393048814,-500.50949047,0.00054794,120]
[340045218,1728393048824,-501.40087398,0.00054794,120]
[340045219,1728393048834,-503.30391793,0.00054794,120]
[340045220,1728393048846,-500.0,0.00054794,120]
[340045221,1728393048865,-500.0,0.00054794,120]
[340045222,1728393048878,-502.39103425,0.00054794,120]
[340045223,1728393048888,-523.55767043,0.00054794,120]
[340045224,1728393048898,-500.0,0.00054794,120]
[340045225,1728393048909,-507.95640304,0.00054794,120]
[340045226,1728393048919,-500.0,0.00054794,120]
[340045227,1728393048930,-500.0,0.00054794,120]
[340045228,1728393048940,-500.0,0.00054794,120]
[340045229,1728393048952,-500.0,0.00054794,120]
[340045230,1728393048962,-500.53721488,0.00054794,120]
[340045231,1728393048973,-500.0,0.00054794,120]
[340045232,1728393048984,-500.0,0.00054794,120]
[340045233,1728393048994,-501.39714765,0.00054794,120]
[340045234,1728393049009,-500.0,0.00054794,120]
[340045235,1728393049020,-509.28329069,0.00054794,120]
[340045236,1728393049030,-500.0,0.00054794,120]
[340045237,1728393049042,-500.0,0.00054794,120]
[340045238,1728393049055,-500.0,0.00054794,120]
[340045239,1728393049065,-500.0,0.00054794,120]
[340045240,1728393049076,-500.0,0.00054794,120]
[340045241,1728393049087,-500.0,0.00054794,120]
[340045242,1728393049098,-500.0,0.00054794,120]
[340045243,1728393049108,-500.0,0.00054794,120]
[340045244,1728393049118,-509.94136585,0.00054794,120]
[340045245,1728393049129,-500.0,0.00054794,30]
[340045246,1728393049140,-500.91189725,0.00054794,120]
[340045247,1728393049150,-500.78231024,0.00054794,120]
[340045248,1728393049161,-500.0,0.00054794,120]
[340045249,1728393049172,-500.0,0.00054794,120]
[340045250,1728393049182,-500.0,0.00054794,120]
[340045251,1728393049192,-500.0,0.00054794,120]
[340045252,1728393049203,-537.37331727,0.00054794,120]
[340045253,1728393049213,-500.0,0.00054794,120]
[340045254,1728393049223,-508.71998828,0.00054794,120]
[340045255,1728393049234,-500.45606187,0.00054794,120]
[340045256,1728393049243,-510.62951009,0.00054794,120]
[340045257,1728393049256,-506.68930324,0.00054794,120]